bitfinex-derivatives/quotes_ETHF0:USTF0_20250629
["timestamp","ask_amount","ask_price","bid_price","bid_amount"]
[1751235517594,2.01672,2446.9,2446.7,3.86155]
[1751235517799,1.32312,2446.9,2446.7,3.86155]
[1751235517996,1.32312,2446.9,2446.8,0.6839]
[1751235518997,0.65375,2446.7,2446.6,1.21231613]
[1751235519392,0.65374,2446.8,2446.6,1.21231613]
[1751235519598,0.65374,2446.8,2446.6,1.86608613]
[1751235519793,0.65375,2446.7,2446.6,1.21231613]
[1751235519994,0.65378,2446.6,2446.5,1.21231613]
[1751235520194,0.65381,2446.5,2446.4,1.21231613]
[1751235520401,0.65381,2446.5,2446.3,2.42248161]
[1751235520901,0.65384,2446.4,2446.3,2.42248161]
[1751235521100,0.65383,2446.5,2446.3,3.07634161]
[1751235521399,0.65383,2446.5,2446.4,2.42248161]
[1751235521905,3.2078,2446.6,2446.5,0.65381]
[1751235522094,3.2078,2446.6,2446.5,1.86636282]
[1751235522293,3.86158,2446.6,2446.5,1.21255282]
[1751235522694,3.2078,2446.6,2446.5,1.86636282]
[1751235522998,3.86158,2446.6,2446.5,1.21255282]
[1751235523402,3.86158,2446.6,2446.4,1.86637282]
[1751235523603,3.2078,2446.6,2446.5,0.65381]
[1751235524194,3.86158,2446.6,2446.4,1.86637282]
[1751235524402,3.86158,2446.6,2446.4,1.86636282]
[1751235524705,0.65381,2446.5,2446.4,1.21255282]
[1751235525003,3.2078,2446.6,2446.5,0.65381]
[1751235525801,1.3231,2446.9,2446.7,0.65374]
[1751235526005,1.3231,2446.9,2446.5,2.57635282]
[1751235526303,0.65378,2446.6,2446.4,1.86638282]
[1751235527401,0.65381,2446.5,2446.4,1.86638282]
[1751235527906,0.65381,2446.5,2446.4,1.21255282]
[1751235529105,1.37321,2446.5,2446.4,1.21255282]
[1751235530009,1.37321,2446.5,2446.4,1.86639282]
[1751235530409,1.37321,2446.5,2446.4,1.21255282]
[1751235532110,1.37321,2446.5,2446.4,1.86639282]
[1751235532306,1.37321,2446.5,2446.4,1.21255282]
[1751235532605,0.7194,2446.5,2446.4,1.86639282]
[1751235532810,3.2078,2446.6,2446.5,0.65381]
[1751235533003,3.2078,2446.6,2446.5,1.86693517]
[1751235533204,3.2078,2446.6,2446.5,3.30233517]
[1751235535411,3.2078,2446.9,2446.8,0.65371]
[1751235536111,3.8615,2446.9,2446.8,0.65371]
[1751235536315,0.65373,2446.8,2446.6,2.81676]
[1751235536611,3.86152,2446.9,2446.7,0.65376]
[1751235536914,0.65373,2446.8,2446.7,0.65376]
[1751235537712,3.2078,2446.9,2446.8,0.65373]
[1751235538512,3.8615,2446.9,2446.7,0.65374]
[1751235538712,3.8615,2446.9,2446.8,0.65373]
[1751235538914,3.2078,2446.9,2446.8,0.65373]
[1751235539102,3.8615,2446.9,2446.8,0.65373]
[1751235539411,3.8615,2446.9,2446.7,0.65374]
[1751235540216,3.2078,2446.9,2446.8,0.65373]
[1751235541717,3.2078,2446.9,2446.8,4.35347724]
[1751235541915,3.2078,2447.3,2446.9,1.63426]
[1751235542116,2.4444495,2447.6,2447.5,0.65354]
[1751235542516,2.4444495,2447.6,2447.1,3.86143]
[1751235542517,4.79579674,2447.6,2447.1,3.86143]
[1751235542819,2.04965,2447.5,2447.2,0.65362]
[1751235543011,2.35134724,2447.6,2447.1,3.2078]
[1751235543321,0.65354,2447.5,2447.3,0.65358]
[1751235543509,2.35134724,2447.6,2447.1,4.6391]
[1751235543715,0.65359,2447.4,2447.2,1.21273975]
[1751235543914,3.2078,2447.3,2447.2,1.21273975]
[1751235544318,4.5251,2447.3,2447.1,1.86636975]
[1751235544513,4.5251,2447.3,2447.1,1.21273975]
[1751235544514,3.8715,2447.3,2447.1,1.21273975]
[1751235544714,5.96341,2447.3,2447.1,1.21273975]
[1751235545915,5.96341,2447.3,2447.1,1.86637975]
[1751235546116,5.3098,2447.3,2447.1,1.86637975]
[1751235546311,5.9634,2447.3,2447.1,1.86637975]
[1751235546518,3.00496724,2447.2,2447.1,1.21273975]
[1751235546718,3.75484724,2447.2,2446.9,1.21273975]
[1751235546918,0.65365,2447.1,2446.9,1.21273975]
[1751235547218,0.65368,2447.0,2446.9,1.21273975]
[1751235547418,0.65367,2447.1,2446.9,1.21273975]
[1751235547617,0.65367,2447.1,2446.9,1.86643975]
[1751235547822,4.40848724,2447.2,2446.9,1.86643975]
[1751235548724,0.65365,2447.1,2446.9,1.21273975]
[1751235548923,3.75484724,2447.2,2446.9,1.86643975]
[1751235549224,3.75484724,2447.2,2446.9,1.21273975]
[1751235549420,0.65366,2447.1,2446.9,1.86642975]
[1751235550222,0.65366,2447.1,2446.9,0.65369]
[1751235550423,0.65366,2447.1,2446.8,2.57524975]
[1751235550625,1.4035,2447.2,2447.0,0.65366]
[1751235550825,3.8715,2447.3,2446.9,2.35134724]
[1751235551120,4.52512,2447.3,2446.9,1.3968]
[1751235551323,4.52512,2447.3,2447.1,0.65365]
[1751235551824,4.52512,2447.3,2447.0,0.65366]
[1751235552027,4.52512,2447.3,2447.1,0.65365]
[1751235552221,3.2078,2447.3,2447.2,3.00496724]
[1751235552422,3.86132,2447.6,2447.4,0.65356]
[1751235552623,3.86132,2447.6,2447.5,1.37704]
[1751235552624,3.2078,2447.6,2447.5,1.37704]
[1751235553228,3.86132,2447.6,2447.5,0.7235]
[1751235553525,2.4444495,2448.2,2447.5,5.7235]
[1751235553719,3.24322501,2448.6,2448.1,2.35134724]
[1751235553925,3.24322501,2448.6,2448.0,5.55914724]
[1751235553926,3.24322501,2448.7,2448.6,0.65325]
[1751235554123,4.0725173,2449.0,2448.9,0.65317]
[1751235554433,3.2078,2449.4,2449.3,0.65306]
[1751235554626,3.2078,2450.1,2449.3,10.15412213]
[1751235554825,3.2078,2450.1,2449.8,2.35134724]
[1751235555028,3.2078,2450.1,2449.6,5.55914724]
[1751235555322,3.2078,2450.1,2449.8,2.35134724]
[1751235555523,3.2078,2450.1,2450.0,2.35134724]
[1751235555728,0.65276,2450.5,2450.0,4.50164194]
[1751235555729,3.2078,2450.5,2450.0,4.50164194]
[1751235555925,0.65269,2450.7,2450.2,3.2078]
[1751235556123,0.65288,2450.0,2449.9,3.2078]
[1751235556322,0.65288,2450.0,2449.7,3.2078]
[1751235556527,6.616,2450.4,2449.7,7.70944194]
[1751235556731,1.3727,2450.3,2450.0,3.2078]
[1751235557225,12.49034194,2450.3,2449.7,0.65294]
[1751235557425,0.65287,2450.1,2449.7,3.2078]
[1751235557729,1.3727,2450.0,2449.7,3.2078]
[1751235557924,4.50164194,2450.7,2449.7,3.2078]
[1751235558123,4.5805,2450.5,2449.9,3.2078]
[1751235558328,5.23325,2450.5,2449.9,3.2078]
[1751235558528,4.5805,2450.5,2449.9,3.2078]
[1751235558724,5.23327,2450.5,2449.9,3.86069]
[1751235558920,0.65275,2450.5,2450.2,3.2078]
[1751235559120,1.3979,2450.6,2450.2,3.2078]
[1751235559432,3.2037207,2451.3,2450.5,3.2078]
[1751235559628,5.7032973,2452.2,2451.6,3.2078]
[1751235559629,4.0725173,2452.2,2451.6,3.2078]
[1751235559824,4.0725173,2452.2,2450.6,49.02]
[1751235559825,4.0725173,2452.4,2452.1,7.70944194]
[1751235560026,0.87640414,2452.8,2452.2,0.1]
[1751235560325,0.12809414,2452.8,2452.7,8.36163194]
[1751235560526,7.228,2453.0,2452.7,3.2078]
[1751235560726,0.65216,2452.9,2452.3,3.2078]
[1751235560931,3.2078,2453.1,2452.5,4.50164194]
[1751235561131,3.2078,2452.8,2452.6,1.4181]
[1751235561326,11.72964194,2452.7,2451.9,3.2078]
[1751235561531,0.65242,2451.9,2451.5,1.3303]
[1751235561728,3.86019,2452.0,2451.5,1.3303]
[1751235562027,0.6524,2451.9,2451.2,3.2078]
[1751235562230,3.2078,2452.0,2451.2,3.2078]
[1751235562231,7.228,2451.8,2451.2,3.2078]
[1751235562426,0.65239,2452.0,2451.3,1.3303]
[1751235562628,7.228,2451.7,2451.2,3.2078]
[1751235562822,1.4033,2452.0,2451.3,1.3303]
[1751235563025,3.2078,2452.1,2451.3,6.45144212]
[1751235563226,7.226,2452.0,2451.3,6.45144212]
[1751235563424,8.6293,2452.0,2451.3,6.45144212]
[1751235563623,8.6293,2452.0,2451.4,0.65252]
[1751235563832,7.226,2451.9,2451.5,0.6525]
[1751235564033,1.4033,2452.0,2451.6,0.65248]
[1751235564232,3.2078,2452.4,2451.8,3.2078]
[1751235564632,0.65234,2452.2,2451.8,3.2078]
[1751235564837,3.2078,2452.4,2451.8,3.2078]
[1751235565032,0.65222,2452.6,2452.0,0.65236]
[1751235565337,0.65223,2452.6,2452.0,0.65236]
[1751235565539,0.65226,2452.5,2452.0,0.65236]
[1751235565835,8.20424,2452.5,2452.0,0.65235]
[1751235566039,8.20424,2452.5,2452.1,1.3627]
[1751235566232,3.2078,2452.7,2452.1,1.3627]
[1751235566433,8.20218,2452.8,2452.3,0.65228]
[1751235566627,0.65218,2452.8,2452.3,0.65228]
[1751235566828,3.2078,2453.0,2452.1,9.69164212]
[1751235567136,0.65216,2452.8,2452.4,3.2078]
[1751235567339,4.5717,2453.0,2452.5,0.65223]
[1751235567541,10.7578,2453.0,2452.7,0.65218]
[1751235567741,10.7578,2453.0,2452.5,1.4525]
[1751235568041,0.65217,2452.8,2452.5,1.4525]
[1751235568338,10.7578,2453.0,2452.5,1.4525]
[1751235568339,3.2078,2453.0,2452.5,1.4525]
[1751235568639,3.85992,2453.0,2452.6,0.65221]
[1751235568941,3.85993,2453.0,2452.7,1.4525]
[1751235569240,3.2078,2453.0,2452.7,1.4525]
[1751235569938,3.85992,2453.0,2452.7,1.4525]
[1751235570135,0.65222,2452.6,2452.4,8.32894212]
[1751235570336,0.65222,2452.6,2452.5,1.4525]
[1751235570538,0.65224,2452.5,2452.4,3.2078]
[1751235570737,4.5791,2453.0,2452.5,0.65223]
[1751235571037,0.65217,2452.8,2452.5,4.6432]
[1751235571239,0.65215,2452.9,2452.5,5.29543]
[1751235571431,3.85993,2453.0,2452.5,4.6432]
[1751235571738,3.2078,2453.0,2452.5,4.6432]
[1751235571935,0.65216,2452.8,2452.5,4.6432]
[1751235572131,0.65218,2452.8,2452.5,4.6432]
[1751235572337,0.65221,2452.7,2452.5,4.6432]
[1751235572532,1.63015,2453.2,2452.5,4.6432]
[1751235572737,0.65217,2452.8,2452.5,4.6432]
[1751235572941,1.3713,2453.2,2452.5,4.6432]
[1751235573238,0.65218,2452.8,2452.5,4.6432]
[1751235573438,1.3713,2453.2,2452.5,4.6432]
[1751235573439,0.65222,2452.6,2452.5,4.6432]
[1751235573632,0.65212,2453.0,2452.7,0.65218]
[1751235573837,12.38389,2453.3,2452.5,4.6432]
[1751235574041,0.65218,2452.8,2452.5,5.29543]
[1751235574343,0.65221,2452.7,2452.5,3.2078]
[1751235574542,0.65215,2452.9,2452.5,3.2078]
[1751235574842,0.65214,2452.9,2452.7,0.65219]
[1751235575044,0.65222,2452.6,2452.5,3.2078]
[1751235575241,3.2078,2453.0,2452.5,3.2078]
[1751235575435,0.65218,2452.8,2452.5,4.5539]
[1751235575635,0.6522,2452.7,2452.5,4.5539]
[1751235575832,3.2078,2453.0,2452.5,4.5539]
[1751235576041,0.65218,2452.8,2452.5,5.20614]
[1751235576439,3.2078,2453.0,2452.5,4.5539]
[1751235576636,0.65217,2452.8,2452.5,5.20614]
[1751235576939,0.65215,2452.9,2452.6,0.65221]
[1751235577238,0.65219,2452.7,2452.5,3.2078]
[1751235577440,0.65222,2452.6,2452.5,3.2078]
[1751235577640,0.65217,2452.8,2452.5,3.2078]
[1751235577845,0.65211,2453.0,2452.8,0.65216]
[1751235578045,0.65211,2453.0,2452.7,0.65218]
[1751235578243,0.65214,2452.9,2452.6,2.0486]
[1751235578543,0.65215,2452.9,2452.6,2.04861]
[1751235578739,3.2078,2453.3,2452.6,6.51754212]
[1751235578945,0.65209,2453.1,2452.6,6.51754212]
[1751235579145,3.2078,2453.3,2452.6,6.51754212]
[1751235579346,3.85983,2453.3,2453.0,0.65209]
[1751235579646,0.65202,2453.4,2453.1,0.65208]
[1751235579841,0.65203,2453.3,2453.0,3.85989]
[1751235580146,0.65202,2453.4,2453.2,0.65205]
[1751235580342,2.09299,2453.5,2453.2,0.65205]
[1751235580542,11.4656,2453.6,2453.0,3.2078]
[1751235580738,0.65206,2453.2,2453.0,3.2078]
[1751235581047,0.65208,2453.1,2453.0,3.2078]
[1751235581250,0.65207,2453.2,2452.9,0.65211]
[1751235581447,0.65209,2453.1,2452.9,3.2078]
[1751235581648,1.441,2453.5,2452.9,3.2078]
[1751235581848,0.65207,2453.2,2452.9,3.85993]
[1751235582045,0.65204,2453.3,2453.0,0.6521]
[1751235582447,0.65203,2453.3,2453.0,0.65209]
[1751235582749,11.4646,2453.6,2452.9,3.2078]
[1751235582943,3.9216,2453.6,2453.0,2.75995037]
[1751235583154,1.36577,2453.6,2453.3,3.2078]
[1751235583346,1.36577,2453.6,2453.0,5.77743975]
[1751235583347,0.7138,2453.6,2453.0,5.77743975]
[1751235583540,0.652,2453.5,2453.2,0.65204]
[1751235583845,2.69686,2453.6,2453.3,1.40527431]
[1751235584040,0.65191,2453.8,2453.5,0.65198]
[1751235584245,0.6519,2453.8,2453.5,0.65198]
[1751235584440,0.65193,2453.7,2453.5,0.65198]
[1751235584645,0.65191,2453.8,2453.5,0.65196]
[1751235584841,0.65191,2453.8,2453.4,5.12114212]
[1751235584842,3.8981,2453.9,2453.4,5.12114212]
[1751235585042,0.65194,2453.7,2453.5,2.61983083]
[1751235585245,0.65192,2453.7,2453.6,2.61983083]
[1751235585445,0.65192,2453.7,2453.6,1.40709108]
[1751235586855,8.19492,2453.7,2453.6,1.40709108]
[1751235587151,0.65203,2453.3,2453.2,1.21273975]
[1751235587354,0.65203,2453.3,2453.2,2.62101833]
[1751235587553,1.4286,2453.6,2453.2,2.62101833]
[1751235587855,0.652,2453.4,2453.3,1.40827858]
[1751235588348,0.65203,2453.3,2453.2,1.21273975]
[1751235588554,0.65208,2453.1,2453.0,1.21273975]
[1751235589254,0.65211,2453.0,2452.9,1.61667382]
[1751235590256,3.85985,2453.3,2453.0,0.6521]
[1751235590456,3.2078,2453.3,2453.1,1.8433118]
[1751235590655,8.2523,2453.5,2453.2,1.1912318]
[1751235590656,0.7103,2453.5,2453.2,1.1912318]
[1751235591057,0.65203,2453.3,2453.2,1.1912318]
[1751235591360,0.65208,2453.1,2453.0,1.58830907]
[1751235591847,0.65207,2453.2,2453.0,1.58830907]
[1751235592046,0.65208,2453.1,2453.0,1.58830907]
[1751235592252,0.65211,2453.0,2452.9,2.42248161]
[1751235592452,0.65216,2452.8,2452.7,3.22363492]
[1751235592749,0.7216,2453.0,2452.6,3.22363492]
[1751235592954,3.2078,2453.1,2452.9,2.38688276]
[1751235593254,0.65214,2452.9,2452.8,3.22363492]
[1751235593654,0.65215,2452.9,2452.6,3.87583492]
[1751235593859,11.4019,2453.1,2452.8,0.65215]
[1751235594063,8.1941,2453.1,2452.9,2.39007631]
[1751235594257,0.65212,2453.0,2452.9,2.39029953]
[1751235594754,0.65207,2453.2,2452.9,1.59376951]
[1751235594956,3.2078,2453.3,2453.1,1.19531727]
[1751235595156,3.2078,2453.3,2453.2,0.65206]
[1751235595557,3.2078,2453.3,2453.2,6.33867116]
[1751235596263,3.2078,2453.3,2453.2,5.14335389]
[1751235596562,3.2078,2453.3,2453.2,7.53365342]
[1751235596961,3.2078,2453.3,2453.0,3.22363492]
[1751235597166,3.2078,2453.3,2453.2,0.65206]
[1751235597359,3.2078,2453.3,2453.2,8.36698881]
[1751235598165,3.85977,2453.6,2453.4,0.652]
[1751235598359,3.2078,2453.6,2453.5,1.8610415]
[1751235598767,3.2078,2453.6,2453.5,2.5130215]
[1751235598965,0.65195,2453.6,2453.5,1.8610415]
[1751235599358,0.65195,2453.6,2453.4,0.652]
[1751235599669,0.65194,2453.7,2453.3,3.87564492]
[1751235599870,0.65195,2453.6,2453.3,3.87564492]
[1751235600166,1.3685,2453.7,2453.3,3.22363492]
[1751235600362,3.2078,2453.9,2453.8,0.6519]
[1751235600564,3.2078,2453.9,2453.8,0.70549114]
[1751235600765,3.2078,2453.9,2453.8,1.35739114]
[1751235601069,3.2078,2454.3,2454.2,0.65179]
[1751235601767,3.2078,2454.3,2454.2,1.19876851]
[1751235602067,3.85956,2454.3,2454.2,1.19876851]
[1751235602269,3.2078,2454.3,2454.2,0.52592428]
[1751235603064,3.2078,2454.3,2454.2,3.56977678]
[1751235603282,3.2078,2454.3,2454.2,1.5998525]
[1751235603765,1.79952142,2454.3,2454.2,6.74293639]
[1751235603969,3.2078,2454.6,2454.3,0.65175]
[1751235604172,3.2078,2454.6,2454.3,1.5999655]
[1751235604369,3.2078,2454.6,2454.5,1.5999655]
[1751235604668,3.85948,2454.6,2454.5,1.5999655]
[1751235605166,0.65171,2454.5,2454.4,1.5999655]
[1751235605569,1.99601,2454.5,2454.4,1.5999655]
[1751235605763,0.65179,2454.2,2454.1,3.2078]
[1751235606665,7.413,2454.3,2454.1,3.2078]
[1751235607172,3.2078,2454.6,2454.1,7.69909389]
[1751235607371,3.2078,2454.6,2454.4,0.65173]
[1751235607575,3.2078,2454.6,2454.5,0.65171]
[1751235607766,3.8595,2454.6,2454.3,0.65175]
[1751235607963,3.2078,2454.6,2454.2,0.98273826]
[1751235608366,3.2078,2454.6,2454.5,0.65171]
[1751235609168,3.2078,2454.6,2454.2,6.77235638]
[1751235609364,3.8997,2454.9,2454.8,0.65163]
[1751235609871,3.8997,2454.9,2454.7,0.65165]
[1751235610368,4.55131,2454.9,2454.5,5.1083673]
[1751235610572,0.65164,2454.8,2454.5,0.65169]
[1751235610768,3.8997,2454.9,2454.5,5.1083673]
[1751235611069,3.24670498,2456.0,2454.5,5.1083673]
[1751235611070,3.2078,2455.7,2455.3,0.65148]
[1751235611271,3.8592,2455.7,2455.3,0.65148]
[1751235611472,3.2078,2455.7,2455.1,11.27234]
[1751235611667,0.65147,2455.5,2455.1,11.27234]
[1751235611868,2.69934,2455.6,2455.2,0.65151]
[1751235612162,2.69934,2455.6,2455.1,10.6208]
[1751235612163,2.0479,2455.6,2455.1,10.6208]
[1751235612562,2.0479,2455.6,2454.5,26.457]
[1751235612563,0.65162,2454.9,2454.5,3.8595]
[1751235612763,0.65166,2454.7,2454.6,1.2565971]
[1751235612964,0.65184,2454.0,2453.9,4.02954365]
[1751235613168,0.6519,2453.8,2453.7,4.02954365]
[1751235613375,0.6519,2453.8,2453.6,4.02954365]
[1751235613670,1.3327,2453.9,2453.5,0.65198]
[1751235613868,3.2078,2454.0,2453.4,3.2078]
[1751235614062,3.2078,2454.0,2453.7,0.6519]
[1751235614263,3.2078,2454.0,2453.5,5.1083673]
[1751235614467,3.2078,2454.0,2453.5,6.4780673]
[1751235614670,3.85966,2454.0,2453.5,7.1300273]
[1751235614872,3.85966,2454.0,2453.6,0.65195]
[1751235615072,3.2078,2454.0,2453.7,0.53978332]
[1751235615270,3.2078,2454.0,2453.7,0.65191]
[1751235615577,8.06378,2454.3,2453.8,0.65187]
[1751235615773,0.65179,2454.2,2453.8,1.3697]
[1751235616068,0.65178,2454.3,2453.9,0.65187]
[1751235616272,3.85955,2454.4,2454.0,0.58622394]
[1751235616469,0.65177,2454.3,2454.1,0.58622394]
[1751235616675,3.2078,2454.4,2454.2,0.58622394]
[1751235616867,3.2078,2455.5,2454.3,11.20596124]
[1751235617073,4.6703,2455.5,2454.9,3.2078]
[1751235617378,0.65148,2455.4,2455.0,0.58616124]
[1751235617678,4.6703,2455.5,2454.9,3.2078]
[1751235617679,1.4625,2455.3,2455.1,0.58089138]
[1751235617978,1.4625,2455.3,2454.9,3.8594]
[1751235617979,1.4625,2455.3,2455.2,0.58089138]
[1751235618375,1.321,2455.6,2455.2,0.58089138]
[1751235618676,1.321,2455.6,2455.3,1.23237138]
[1751235618876,1.321,2455.6,2455.3,0.65148]
[1751235619080,1.321,2455.6,2455.4,0.65147]
[1751235619571,1.321,2455.6,2455.3,0.65149]
[1751235619773,1.321,2455.6,2455.4,0.55540501]
[1751235619973,1.4564,2455.5,2455.2,3.85931]
[1751235620174,1.4564,2455.5,2455.4,0.65147]
[1751235620476,1.321,2455.6,2455.5,0.65145]
[1751235620673,3.2078,2456.1,2455.5,8.87145519]
[1751235620876,3.2078,2456.1,2455.8,0.65135]
[1751235621171,3.2078,2456.1,2455.6,1.4129]
[1751235621377,3.2078,2456.1,2455.9,0.65133]
[1751235621568,3.2078,2456.1,2456.0,0.65131]
[1751235621774,2.10759,2456.5,2456.1,0.65127]
[1751235621775,3.2078,2456.4,2456.1,0.65127]
[1751235622075,4.6642,2456.4,2456.0,0.6513]
[1751235622275,5.31541,2456.4,2456.1,0.55505623]
[1751235622474,0.65125,2456.3,2455.9,0.65133]
[1751235622777,1.97935,2456.3,2456.0,0.55505619]
[1751235622979,1.97935,2456.3,2455.8,4.6207]
[1751235622980,1.3281,2456.3,2455.8,4.6207]
[1751235623178,3.85902,2456.4,2456.0,0.6513]
[1751235623379,3.2078,2456.4,2456.1,0.65126]
[1751235623782,3.85902,2456.4,2456.0,5.7596673]
[1751235623982,3.2078,2456.4,2456.1,0.65128]
[1751235624286,3.85901,2456.4,2456.1,0.65129]
[1751235624581,3.2078,2456.4,2456.1,0.65127]
[1751235624779,3.2078,2456.7,2456.3,5.1083673]
[1751235625079,3.2078,2457.0,2456.8,0.6511]
[1751235625282,3.2078,2457.0,2456.6,8.3161673]
[1751235625486,3.2078,2457.0,2456.6,3.2078]
[1751235625784,1.3281,2457.2,2456.6,3.2078]
[1751235625785,1.97911,2457.2,2456.8,0.6511]
[1751235625987,1.3281,2457.2,2456.8,0.6511]
[1751235626176,3.2078,2457.3,2456.8,0.6511]
[1751235626381,3.2078,2457.3,2456.7,8.09412]
[1751235626581,0.65104,2457.1,2456.7,8.09412]
[1751235626886,0.65103,2457.1,2456.7,8.09411]
[1751235627180,3.2078,2457.3,2456.7,12.443]
[1751235627380,3.2078,2457.3,2457.0,5.1083673]
[1751235627577,3.85877,2457.3,2457.0,5.1083673]
[1751235627884,3.2078,2457.3,2457.2,0.65099]
[1751235628281,3.2078,2457.3,2457.0,1.4545]
[1751235628477,3.2078,2457.3,2456.9,3.2078]
[1751235628682,8.8957,2457.2,2456.6,3.2078]
[1751235628984,3.85879,2457.3,2456.9,3.2078]
[1751235629281,0.651,2457.2,2456.9,3.2078]
[1751235629483,0.65103,2457.1,2456.9,3.2078]
[1751235629677,0.65101,2457.2,2456.9,3.2078]
[1751235629878,0.65102,2457.1,2456.9,3.2078]
[1751235630284,0.65105,2457.0,2456.9,3.2078]
[1751235630484,2.10375,2457.0,2456.9,3.2078]
[1751235631278,0.65115,2456.6,2456.5,3.2078]
[1751235631484,3.2078,2457.3,2456.5,8.3161673]
[1751235631684,3.2078,2458.1,2457.2,8.3161673]
[1751235631984,0.65089,2457.6,2457.5,3.2078]
[1751235632179,0.65098,2457.3,2457.1,3.2078]
[1751235632380,0.65093,2457.5,2457.1,3.85882]
[1751235632575,7.442,2457.8,2457.4,3.2078]
[1751235632576,7.441,2457.8,2457.4,3.2078]
[1751235632781,0.65086,2457.8,2457.5,5.7592773]
[1751235632979,0.65086,2457.8,2457.5,5.1083673]
[1751235633181,3.2078,2458.1,2457.6,0.65088]
[1751235633381,0.65082,2457.9,2457.6,0.65088]
[1751235633777,4.6522,2458.1,2457.5,6.5584673]
[1751235633978,0.6586,2458.2,2458.1,0.65076]
[1751235634284,3.2078,2458.4,2458.1,5.1083673]
[1751235634484,3.85848,2458.4,2458.1,5.7591073]
[1751235634684,3.2078,2458.4,2458.2,0.65073]
[1751235634979,3.2078,2458.7,2458.1,8.3161673]
[1751235635183,3.2078,2459.0,2458.7,0.6506]
[1751235635387,3.2078,2459.0,2458.8,5.1083673]
[1751235636084,0.65058,2458.8,2458.5,12.5473673]
[1751235636284,0.65054,2459.0,2458.7,3.2078]
[1751235636483,0.65051,2459.1,2458.7,3.2078]
[1751235636679,3.2078,2459.3,2458.8,5.1083673]
[1751235636885,3.2078,2459.3,2459.1,5.1083673]
[1751235637077,3.2078,2459.3,2459.1,5.7588373]
[1751235637283,3.2078,2459.3,2459.1,5.1083673]
[1751235638181,3.2078,2459.3,2458.9,12.5473673]
[1751235638384,3.2078,2459.3,2459.0,0.58907472]
[1751235638584,0.65036,2459.6,2459.2,5.1083673]
[1751235638891,5.3802,2460.0,2459.5,8.3161673]
[1751235639080,6.03047,2460.0,2459.5,8.9665373]
[1751235639385,6.03047,2460.0,2459.6,0.58809244]
[1751235639386,3.2078,2460.0,2459.6,0.58809244]
[1751235639585,3.2078,2460.0,2459.5,3.2078]
[1751235639890,3.85807,2460.0,2459.7,5.1083673]
[1751235640084,0.65024,2460.1,2459.7,5.7586973]
[1751235640283,0.7225,2460.3,2459.7,5.7586973]
[1751235640284,0.65026,2460.0,2459.9,3.2078]
[1751235640586,3.2078,2460.4,2459.9,3.2078]
[1751235640883,0.65025,2460.0,2459.9,3.2078]
[1751235641284,0.65025,2460.0,2459.9,0.57158606]
[1751235641487,0.65028,2459.9,2459.8,7.437]
[1751235641786,3.2078,2460.4,2460.2,0.6502]
[1751235641985,3.2078,2460.4,2459.8,16.32477232]
[1751235641986,0.6502,2460.2,2460.1,5.1083673]
[1751235642187,3.2078,2460.4,2459.8,10.6448]
[1751235642188,0.65028,2459.9,2459.8,3.2078]
[1751235642388,1.4174,2460.1,2459.5,3.2078]
[1751235642685,3.2078,2460.4,2460.3,0.65017]
[1751235642883,0.6687,2461.0,2460.3,13.11396701]
[1751235642884,3.2078,2461.0,2460.3,13.11396701]
[1751235643090,3.2078,2461.0,2460.6,3.2078]
[1751235643091,0.65007,2460.7,2460.6,3.2078]
[1751235643284,3.2078,2461.0,2460.1,10.6428]
[1751235643591,3.2078,2461.0,2460.5,8.3161673]
[1751235643782,3.2078,2461.0,2460.5,16.4012773]
[1751235643988,0.65008,2460.7,2460.5,15.7511673]
[1751235644185,1.3968,2460.9,2460.5,10.6428]
[1751235644385,0.65007,2460.7,2460.5,10.6428]
[1751235644590,3.2078,2461.0,2460.5,10.6428]
[1751235644591,3.2078,2461.0,2460.6,5.67126121]
[1751235644789,3.2078,2461.0,2460.6,6.5012673]
[1751235645087,3.2078,2461.0,2460.5,10.6428]
[1751235645088,0.65003,2460.9,2460.5,10.6428]
[1751235645292,3.2078,2461.0,2460.7,5.1083673]
[1751235645592,0.65002,2460.9,2460.8,0.61811493]
[1751235646083,5.65002,2460.9,2460.8,0.61811493]
[1751235646287,1.62525,2460.6,2459.7,3.2078]
[1751235646589,0.65024,2460.1,2459.7,3.2078]
[1751235646789,4.5881,2460.5,2459.8,0.65029]
[1751235646988,0.65028,2460.0,2459.7,4.6572]
[1751235647181,4.5881,2460.5,2459.7,3.2078]
[1751235647182,4.83318,2460.4,2459.7,3.2078]
[1751235647383,0.65031,2459.8,2459.7,3.2078]
[1751235647786,0.65041,2459.4,2459.3,15.7471673]
[1751235647989,0.65041,2459.4,2459.3,10.6388]
[1751235648190,0.65049,2459.1,2459.0,3.2078]
[1751235648594,0.65048,2459.2,2459.0,3.2078]
[1751235648796,2.03076,2459.3,2459.0,3.2078]
[1751235649092,0.6599,2459.8,2459.2,5.1083673]
[1751235649389,0.65035,2459.7,2459.6,3.2078]
[1751235649593,0.65035,2459.7,2459.6,3.09015485]
[1751235649794,2.05825,2459.7,2459.6,3.09015485]
[1751235649996,1.4079,2459.7,2459.5,3.2078]
[1751235650195,0.65043,2459.4,2459.1,3.2078]
[1751235650394,0.65047,2459.2,2459.1,3.2078]
[1751235650696,4.6157,2459.7,2459.1,3.2078]
[1751235650994,0.6507,2458.3,2456.6,5.56941984]
[1751235651185,3.2078,2458.2,2457.7,0.58245921]
[1751235651385,3.2078,2458.2,2457.9,5.7591673]
[1751235651588,3.85853,2458.2,2457.9,5.1083673]
[1751235651796,0.65076,2458.1,2457.7,1.3926]
[1751235652000,0.65083,2457.9,2457.7,1.3926]
[1751235652187,0.65084,2457.8,2457.5,3.2078]
[1751235652490,3.2078,2457.8,2457.4,0.65093]
[1751235652695,3.85865,2457.8,2457.5,1.4125]
[1751235652897,0.65089,2457.7,2457.2,3.85879]